fUSD/lending_fUSD_20260208
["ID","MTS","AMOUNT","RATE_DAILY","PERIOD"]
[404790247,1770563431779,-230.05052135,0.00027472,2]
[404790248,1770563431794,-419.23567914,0.00027473,5]
[404790249,1770563431880,-82.18614423,0.00027473,5]
[404790250,1770563431890,-568.48964794,0.00027473,5]
[404790251,1770563431901,-501.31455207,0.00027473,5]
[404790252,1770563431910,-502.04026923,0.00027473,5]
[404790253,1770563431920,-500.0,0.00027473,5]
[404790254,1770563431929,-501.29176884,0.00027473,3]
[404790255,1770563431938,-576.29863876,0.00027473,5]
[404790257,1770563431948,-200.0,0.000276,10]
[404790258,1770563431957,-729.19143855,0.00027692,2]
[404790259,1770563431969,-270.80856145,0.00027692,2]
[404790260,1770563431978,-400.0,0.000277,10]
[404790261,1770563431988,-782.28988292,0.000277,2]
[404790262,1770563431998,-257.26947708,0.000277,2]
[404790264,1770563432008,-1263.19891111,0.000277,2]
[404790269,1770563437813,-1474.7008467,0.000277,2]
[404790270,1770563437823,-3086.49408554,0.000277,2]
[404790271,1770563437835,-321.95384877,0.000277,2]
[404790272,1770563437845,-1000.0,0.00027734,20]
[404790273,1770563437855,-160.0,0.00027772,2]
[404790274,1770563437864,-160.0,0.00027772,2]
[404790275,1770563437874,-5134.11,0.00027782,2]
[404790276,1770563437883,-5134.11,0.00027782,2]
[404790277,1770563437893,-1134.48481275,0.00027782,2]
[404790278,1770563437905,-736.12857669,0.00027782,2]
[404790279,1770563437916,-1139.22570842,0.00027782,2]
[404790280,1770563437927,-999.0,0.00027782,2]
[404790281,1770563437943,-1125.27090214,0.00027782,2]
[404790282,1770563437953,-3815.0389122,0.00027782,2]
[404790283,1770563437965,-1319.0710878,0.00027782,2]
[404790284,1770563437975,-2047.99739432,0.00027782,2]
[404790302,1770563439897,-513.2858109,0.00027782,2]
[404790303,1770563439908,-2572.82679478,0.00027782,2]
[404790304,1770563439918,-151.0,0.00027789,7]
[404790305,1770563439927,-354.59805596,0.0002779,2]
[404790320,1770563443814,-145.40194404,0.0002779,2]
[404790321,1770563443826,-156.59805596,0.00027791,10]
[404790329,1770563447626,-143.40194404,0.00027791,10]
[404790330,1770563447636,-183.13319499,0.00027791,2]
[404790331,1770563447647,-316.86680501,0.00027791,2]
[404790332,1770563447657,-233.54639444,0.00027791,2]
[404790333,1770563447667,-205.69309523,0.00027791,2]
[404790334,1770563447676,-332.60223795,0.00027791,2]
[404790335,1770563447685,-500.0,0.00027791,2]
[404790336,1770563447695,-286.91744493,0.00027791,2]
[404790337,1770563447704,-500.0,0.00027791,2]
[404790338,1770563447714,-500.0,0.00027791,2]
[404790339,1770563447724,-684.28173641,0.00027791,2]
[404790340,1770563447733,-500.0,0.00027791,2]
[404790341,1770563447743,-684.28173641,0.00027791,2]
[404790342,1770563447752,-500.0,0.00027791,2]
[404790343,1770563447761,-684.28173641,0.00027791,2]
[404790344,1770563447771,-684.28173641,0.00027791,2]
[404790345,1770563447780,-684.28173641,0.00027791,2]
[404790346,1770563447790,-263.03668147,0.00027791,2]
[404790347,1770563447802,-236.96331853,0.00027791,2]
[404790348,1770563447812,-500.0,0.00027791,2]
[404790349,1770563447822,-684.28173641,0.00027791,2]
[404790350,1770563447831,-500.0,0.00027791,2]
[404790351,1770563447843,-684.28173641,0.00027791,2]
[404790352,1770563447854,-500.0,0.00027791,2]
[404790353,1770563447863,-684.28173641,0.00027791,2]
[404790354,1770563447873,-684.28173641,0.00027791,2]
[404790355,1770563447884,-500.0,0.00027791,2]
[404790356,1770563447894,-684.28173641,0.00027791,2]
[404790357,1770563447904,-500.0,0.00027791,2]
[404790358,1770563447915,-684.28173641,0.00027791,2]
[404790359,1770563447924,-684.28173641,0.00027791,2]
[404790360,1770563447935,-500.0,0.00027791,2]
[404790361,1770563447944,-684.28173641,0.00027791,2]
[404790362,1770563447953,-500.0,0.00027791,2]
[404790363,1770563447963,-684.28173641,0.00027791,2]
[404790364,1770563447973,-500.0,0.00027791,2]
[404790365,1770563447986,-684.28173641,0.00027791,2]
[404790366,1770563447997,-275.73811922,0.00027791,2]
[404790367,1770563448007,-684.28173641,0.00027791,2]
[404790368,1770563448017,-500.0,0.00027791,2]
[404790369,1770563448027,-684.28173641,0.00027791,2]
[404790370,1770563448037,-500.0,0.00027791,2]
[404790371,1770563448047,-684.28173641,0.00027791,2]
[404790372,1770563448058,-684.28173641,0.00027791,2]
[404790373,1770563448069,-500.0,0.00027791,2]
[404790374,1770563448079,-684.28173641,0.00027791,2]
[404790375,1770563448089,-684.28173641,0.00027791,2]
[404790376,1770563448100,-684.28173641,0.00027791,2]
[404790377,1770563448109,-684.28173641,0.00027791,2]
[404790378,1770563448119,-684.28173641,0.00027791,2]
[404790379,1770563448128,-684.28173641,0.00027791,2]
[404790380,1770563448138,-684.28173641,0.00027791,2]
[404790381,1770563448147,-684.28173641,0.00027791,2]
[404790382,1770563448158,-684.28173641,0.00027791,2]
[404790383,1770563448168,-684.28173641,0.00027791,2]
[404790384,1770563448178,-684.28173641,0.00027791,2]
[404790385,1770563448187,-684.28173641,0.00027791,2]
[404790386,1770563448196,-684.28173641,0.00027791,2]
[404790387,1770563448205,-684.28173641,0.00027791,2]
[404790388,1770563448215,-684.28173641,0.00027791,2]
[404790389,1770563448226,-684.28173641,0.00027791,2]
[404790390,1770563448237,-684.28173641,0.00027791,2]
[404790391,1770563448246,-684.28173641,0.00027791,2]
[404790392,1770563448256,-684.28173641,0.00027791,2]
[404790393,1770563448266,-684.28173641,0.00027791,2]
[404790394,1770563448275,-684.28173641,0.00027791,2]
[404790395,1770563448285,-684.28173641,0.00027791,2]
[404790396,1770563448296,-684.28173641,0.00027791,2]
[404790397,1770563448309,-684.28173641,0.00027791,2]
[404790398,1770563448319,-684.28173641,0.00027791,2]
[404790399,1770563448330,-684.28173641,0.00027791,2]
[404790400,1770563448340,-684.28173641,0.00027791,2]
[404790401,1770563448353,-684.28173641,0.00027791,2]
[404790402,1770563448363,-684.28173641,0.00027791,2]
[404790403,1770563448373,-684.28173641,0.00027791,2]
[404790404,1770563448384,-684.28173641,0.00027791,2]
[404790405,1770563448395,-684.28173641,0.00027791,2]
[404790406,1770563448406,-684.28173641,0.00027791,2]
[404790407,1770563448416,-684.28173641,0.00027791,2]
[404790408,1770563448426,-815.08096951,0.00027791,2]
[404790409,1770563448436,-815.08096951,0.00027791,2]
[404790410,1770563448446,-815.08096951,0.00027791,2]
[404790411,1770563448456,-815.08096951,0.00027791,2]
[404790412,1770563448475,-815.08096951,0.00027791,2]
[404790413,1770563448485,-815.08096951,0.00027791,2]
[404790414,1770563448495,-815.08096951,0.00027791,2]
[404790415,1770563448505,-815.08096951,0.00027791,2]
[404790416,1770563448515,-815.08096951,0.00027791,2]
[404790417,1770563448525,-815.08096951,0.00027791,2]
[404790418,1770563448535,-815.08096951,0.00027791,2]
[404790419,1770563448544,-815.08096951,0.00027791,2]
[404790420,1770563448554,-815.08096951,0.00027791,2]
[404790421,1770563448564,-815.08096951,0.00027791,2]
[404790422,1770563448574,-815.08096951,0.00027791,2]
[404790423,1770563448583,-815.08096951,0.00027791,2]
[404790424,1770563448593,-815.08096951,0.00027791,2]
[404790425,1770563448602,-815.08096951,0.00027791,2]
[404790426,1770563448612,-815.08096951,0.00027791,2]
[404790427,1770563448622,-815.08096951,0.00027791,2]
[404790428,1770563448633,-815.08096951,0.00027791,2]
[404790429,1770563448644,-815.08096951,0.00027791,2]
[404790430,1770563448654,-815.08096951,0.00027791,2]
[404790431,1770563448664,-815.08096951,0.00027791,2]
[404790432,1770563448674,-815.08096951,0.00027791,2]
[404790433,1770563448683,-815.08096951,0.00027791,2]
[404790434,1770563448693,-815.08096951,0.00027791,2]
[404790435,1770563448703,-815.08096951,0.00027791,2]
[404790436,1770563448712,-815.08096951,0.00027791,2]
[404790437,1770563448722,-815.08096951,0.00027791,2]
[404790438,1770563448732,-815.08096951,0.00027791,2]
[404790439,1770563448742,-815.08096951,0.00027791,2]
[404790440,1770563448752,-815.08096951,0.00027791,2]
[404790441,1770563448762,-815.08096951,0.00027791,2]
[404790442,1770563448772,-815.08096951,0.00027791,2]
[404790443,1770563448782,-815.08096937,0.00027791,2]
[404790444,1770563448792,-500.0,0.00027791,2]
[404790445,1770563448802,-501.0,0.00027791,2]
[404790446,1770563448811,-533216.57614676,0.00027792,2]
[404790447,1770563448829,-72582.55560384,0.00027792,2]
[404790449,1770563485580,500.0,0.00027791,30]
[404790450,1770563485805,500.0,0.00027791,30]
[404790451,1770563486108,500.0,0.00027791,30]
[404790452,1770563486330,500.0,0.00027791,30]
[404790453,1770563486555,500.0,0.00027791,30]
[404790454,1770563486792,500.0,0.00027791,30]
[404790455,1770563487038,500.0,0.00027791,30]
[404790456,1770563487276,500.0,0.00027791,30]
[404790457,1770563487509,500.0,0.00027791,30]
[404790458,1770563487736,500.0,0.00027791,30]
[404790459,1770563487971,225.58,0.00027791,30]
[404790460,1770563544749,500.0,0.00028468,30]
[404790461,1770563544975,500.0,0.00028468,30]
[404790462,1770563545206,500.0,0.00028468,30]
[404790463,1770563545445,500.0,0.00028468,30]
[404790464,1770563545692,500.0,0.00028468,30]
[404790465,1770563545926,500.0,0.00028468,30]
[404790466,1770563546160,508.28,0.00028468,30]
[404790467,1770563549507,500.0,0.00028468,30]
[404790468,1770563549739,500.0,0.00028468,30]
[404790469,1770563551425,151.0,0.00035616,30]
[404790470,1770563552143,156.587,0.00035616,30]
[404790471,1770563552755,162.380719,0.00035616,30]
[404790472,1770563553382,168.3888056,0.00035616,30]
[404790473,1770563553992,174.61919141,0.00035616,30]
[404790474,1770563554595,181.08010149,0.00035616,30]
[404790475,1770563555545,187.78006525,0.00035616,30]
[404790476,1770563556063,194.72792766,0.00035616,30]
[404790477,1770563556636,201.93286099,0.00035616,30]
[404790478,1770563557251,209.40437684,0.00035616,30]
[404790479,1770563557863,217.15233878,0.00035616,30]
[404790480,1770563558497,225.18697532,0.00035616,30]
[404790481,1770563559116,233.51889341,0.00035616,30]
[404790482,1770563559843,242.15909246,0.00035616,30]
[404790483,1770563560499,251.11897888,0.00035616,30]
[404790484,1770563561138,260.4103811,0.00035616,30]
[404790485,1770563561758,270.0455652,0.00035616,30]
[404790486,1770563562894,280.03725112,0.00035616,30]
[404790487,1770563563532,290.39862941,0.00035616,30]
[404790488,1770563564196,301.1433787,0.00035616,30]
[404790491,1770563785945,150.4,0.00030137,30]
[404790496,1770563836824,151.0,0.00035616,30]
[404790497,1770563837484,156.587,0.00035616,30]
[404790498,1770563838139,162.380719,0.00035616,30]
[404790499,1770563838785,168.3888056,0.00035616,30]
[404790500,1770563839492,174.61919141,0.00035616,30]
[404790501,1770563840121,181.08010149,0.00035616,30]
[404790502,1770563840738,187.78006525,0.00035616,30]
[404790503,1770563841452,194.72792766,0.00035616,30]
[404790504,1770563842083,201.93286099,0.00035616,30]
[404790505,1770563842815,209.40437684,0.00035616,30]
[404790506,1770563843464,217.15233878,0.00035616,30]
[404790507,1770563844136,225.18697532,0.00035616,30]
[404790508,1770563844760,233.51889341,0.00035616,30]
[404790509,1770563845424,242.15909246,0.00035616,30]
[404790510,1770563846079,251.11897888,0.00035616,30]
[404790511,1770563846843,260.4103811,0.00035616,30]
[404790512,1770563847590,270.0455652,0.00035616,30]
[404790513,1770563848298,280.03725112,0.00035616,30]
[404790514,1770563848966,290.39862941,0.00035616,30]
[404790515,1770563849627,301.1433787,0.00035616,30]
[404790523,1770564135910,151.0,0.00035616,30]
[404790524,1770564136512,156.587,0.00035616,30]
[404790525,1770564137167,162.380719,0.00035616,30]
[404790526,1770564137788,168.3888056,0.00035616,30]
[404790527,1770564138442,174.61919141,0.00035616,30]
[404790528,1770564139090,181.08010149,0.00035616,30]
[404790529,1770564139744,187.78006525,0.00035616,30]
[404790530,1770564140397,194.72792766,0.00035616,30]
[404790531,1770564141373,201.93286099,0.00035616,30]
[404790532,1770564141921,209.40437684,0.00035616,30]
[404790533,1770564142536,217.15233878,0.00035616,30]
[404790534,1770564143232,225.18697532,0.00035616,30]
[404790535,1770564143858,233.51889341,0.00035616,30]
[404790536,1770564144474,242.15909246,0.00035616,30]
[404790537,1770564145111,251.11897888,0.00035616,30]
[404790538,1770564145725,260.4103811,0.00035616,30]
[404790539,1770564146336,270.0455652,0.00035616,30]
[404790540,1770564146985,280.03725112,0.00035616,30]
[404790541,1770564147654,290.39862941,0.00035616,30]
[404790542,1770564148293,301.1433787,0.00035616,30]
[404790543,1770564179176,1000.0,0.00025,2]
[404790544,1770564412755,5000.00478965,0.000162,5]
[404790545,1770564432702,151.0,0.00035616,30]
[404790546,1770564433336,156.587,0.00035616,30]
[404790547,1770564434185,162.380719,0.00035616,30]
[404790548,1770564434837,168.3888056,0.00035616,30]
[404790549,1770564435593,174.61919141,0.00035616,30]
[404790550,1770564436263,181.08010149,0.00035616,30]
[404790551,1770564436967,187.78006525,0.00035616,30]
[404790552,1770564437654,194.72792766,0.00035616,30]
[404790553,1770564438304,201.93286099,0.00035616,30]
[404790554,1770564438928,209.40437684,0.00035616,30]
[404790555,1770564439529,163.0,0.00035616,30]
[404790556,1770564439595,217.15233878,0.00035616,30]
[404790557,1770564440187,225.18697532,0.00035616,30]
[404790558,1770564440886,233.51889341,0.00035616,30]
[404790559,1770564441552,242.15909246,0.00035616,30]
[404790560,1770564442174,251.11897888,0.00035616,30]
[404790561,1770564442888,260.4103811,0.00035616,30]
[404790562,1770564444023,270.0455652,0.00035616,30]
[404790563,1770564444689,280.03725112,0.00035616,30]
[404790564,1770564445325,290.39862941,0.00035616,30]
[404790565,1770564445943,301.1433787,0.00035616,30]
[404790566,1770564451402,2074.13572569,0.00017,2]
[404790567,1770564451428,25000.0,0.00017,2]
[404790568,1770564451454,25000.0,0.00017,2]
[404790569,1770564451480,25000.0,0.00017,2]
[404790570,1770564451504,24520.23804743,0.00017,2]
[404790571,1770564451533,24040.47609486,0.00017,2]
[404790572,1770564451559,42972.00333595,0.00017,2]
[404790573,1770564451587,34265.24631306,0.00017,2]
[404790574,1770564482879,1516.29509462,0.00018,2]
[404790575,1770564486767,159.0,0.00035616,30]
[404790577,1770564488400,5172.883087,7.945e-05,2]
[404790579,1770564502207,1192.92261323,0.00018,2]
[404790581,1770564516100,1300.0,0.00033,100]
[404790584,1770564518196,500.28713226,0.00018,2]
[404790585,1770564522971,2001.8772348,0.00035,30]
[404790589,1770564547129,-1781.23006098,0.000181,2]
[404790590,1770564547154,-1144.97803382,0.00019,2]
[404790591,1770564547179,-250.0,0.0001991,2]
[404790592,1770564547199,-250.0,0.0001991,2]
[404790593,1770564547221,-1519.7304832,0.00021,2]
[404790606,1770564631925,-547.77308168,0.00020999,2]
[404790607,1770564632003,-652.22691832,0.00020999,2]
[404790608,1770564632015,-24107.36458603,0.00021,2]
[404790609,1770564632028,-34878.24004499,0.00021,2]
[404790610,1770564632038,-336.0,0.00021,2]
[404790611,1770564632048,-250.0,0.00022572,2]
[404790612,1770564632059,-1752.93602385,0.000226,2]
[404790613,1770564632069,-1680.0,0.00022951,2]
[404790614,1770564632079,-35635.35083697,0.000241,2]
[404790615,1770564632088,-2351.0,0.00025084,2]
[404790616,1770564632097,-7659.07,0.00025968,2]
[404790617,1770564632106,-267.0,0.00026376,2]
[404790618,1770564632116,-344.0,0.00026603,2]
[404790619,1770564632126,-509.06693252,0.00026735,2]
[404790620,1770564632141,-169.10763352,0.00026735,2]
[404790621,1770564632154,-3065.90320911,0.00026735,2]
[404790622,1770564632164,-521.52658862,0.00026735,2]
[404790623,1770564632174,-166.7450837,0.00026823,2]
[404790624,1770564632183,-200.0,0.00026828,2]
[404790625,1770564632194,-151.0,0.0002683,7]
[404790626,1770564632425,-20958.98575578,0.00026833,2]
[404790627,1770564632443,-1482.98944333,0.00026833,2]
[404790628,1770564632455,-731.38855193,0.00026833,2]
[404790641,1770564638190,-14299.91046977,0.00026833,2]
[404790642,1770564638272,-15945.09012712,0.00026833,2]
[404790643,1770564638284,-45379.6871142,0.00026833,2]
[404790714,1770564640021,-1175.38964843,0.00026833,2]
[404790715,1770564640106,-13381.20261966,0.00026833,2]
[404790716,1770564640118,-19398.59127873,0.00026833,2]
[404790717,1770564640130,-653.76080498,0.00026833,2]
[404790718,1770564640142,-21054.5566261,0.00026833,2]
[404790719,1770564640153,-4249.00602715,0.00026833,2]
[404790720,1770564640164,-422.28753396,0.00026833,2]
[404790721,1770564640233,-244597.28621439,0.00026833,2]
[404790722,1770564640244,-178913.94884951,0.00026833,2]
[404790723,1770564640255,-5320.49999997,0.00026833,2]
[404790726,1770564643953,-355.545,0.00026833,2]
[404790727,1770564643966,-348.61917627,0.00026833,2]
[404790728,1770564645059,-555.58135888,0.00026833,2]
[404790766,1770564646035,-1760.0,0.00026833,2]
[404790767,1770564646097,-1356.34125855,0.00026833,2]
[404790794,1770564739591,151.0,0.00035616,30]
[404790795,1770564740263,156.587,0.00035616,30]
[404790796,1770564741026,162.380719,0.00035616,30]
[404790797,1770564741532,168.3888056,0.00035616,30]
[404790798,1770564742264,174.61919141,0.00035616,30]
[404790799,1770564742891,181.08010149,0.00035616,30]
[404790800,1770564743541,187.78006525,0.00035616,30]
[404790801,1770564744166,194.72792766,0.00035616,30]
[404790802,1770564744805,201.93286099,0.00035616,30]
[404790803,1770564745422,209.40437684,0.00035616,30]
[404790804,1770564746092,217.15233878,0.00035616,30]
[404790805,1770564746728,225.18697532,0.00035616,30]
[404790806,1770564747376,233.51889341,0.00035616,30]
[404790807,1770564747986,242.15909246,0.00035616,30]
[404790808,1770564748599,251.11897888,0.00035616,30]
[404790809,1770564749228,260.4103811,0.00035616,30]
[404790810,1770564749870,270.0455652,0.00035616,30]
[404790811,1770564750511,280.03725112,0.00035616,30]
[404790812,1770564751293,290.39862941,0.00035616,30]
[404790813,1770564751790,301.1433787,0.00035616,30]
[404790814,1770564755582,500.0,0.00027491,30]
[404790815,1770564755812,500.0,0.00027491,30]
[404790816,1770564756031,451.33995253,0.00027491,30]
[404790822,1770565038127,151.0,0.00035616,30]
[404790823,1770565038758,156.587,0.00035616,30]
[404790824,1770565039391,162.380719,0.00035616,30]
[404790825,1770565040175,168.3888056,0.00035616,30]
[404790826,1770565040682,174.61919141,0.00035616,30]
[404790827,1770565041352,181.08010149,0.00035616,30]
[404790828,1770565041970,187.78006525,0.00035616,30]
[404790829,1770565042592,194.72792766,0.00035616,30]
[404790830,1770565043436,201.93286099,0.00035616,30]
[404790831,1770565043827,209.40437684,0.00035616,30]
[404790832,1770565044463,217.15233878,0.00035616,30]
[404790833,1770565045135,225.18697532,0.00035616,30]
[404790834,1770565045768,233.51889341,0.00035616,30]
[404790835,1770565046396,242.15909246,0.00035616,30]
[404790836,1770565047003,251.11897888,0.00035616,30]
[404790837,1770565047653,260.4103811,0.00035616,30]
[404790838,1770565048278,270.0455652,0.00035616,30]
[404790839,1770565048918,280.03725112,0.00035616,30]
[404790840,1770565050069,290.39862941,0.00035616,30]
[404790841,1770565050705,329.08822727,0.00035616,30]
[404790850,1770565456964,166.66,0.0002432,30]
[404790851,1770565457166,166.66,0.00024832,30]
[404790852,1770565457355,166.66,0.00025344,30]
[404790853,1770565457553,166.66,0.00025856,30]
[404790854,1770565457759,166.66,0.00026368,30]
[404790855,1770565458003,166.66,0.0002688,30]
[404790864,1770565832147,-1473.69,0.0002556,2]
[404790865,1770565832157,-300.0,0.00025571,2]
[404790866,1770565832167,-169.10485024,0.00025582,2]
[404790867,1770565832178,-300.0,0.00025621,2]
[404790868,1770565832187,-246.27155301,0.00025625,2]
[404790869,1770565832196,-265.0,0.00025681,2]
[404790870,1770565832205,-511.43359673,0.00025681,2]
[404790871,1770565832217,-688.56640327,0.00025681,2]
[404790872,1770565832226,-300.0,0.00025682,2]
[404790873,1770565832236,-300.0,0.00025682,2]
[404790874,1770565832245,-300.0,0.00025682,2]
[404790875,1770565832255,-9752.07,0.00025683,2]
[404790876,1770565832265,-150.0,0.00025747,2]
[404790877,1770565832274,-511.89,0.00026039,2]
[404790878,1770565832284,-2809.82890911,0.00026335,2]
[404790879,1770565832295,-238.70462825,0.00026335,2]
[404790880,1770565832304,-4344.87308726,0.00026335,2]
[404790881,1770565832314,-157.13832457,0.00026335,2]
[404790882,1770565832325,-339.37795502,0.00026335,2]
[404790883,1770565832336,-237.3530055,0.00026335,5]
[404790884,1770565832345,-174.96000331,0.00026335,2]
[404790885,1770565832354,-3006.338547,0.00026335,2]
[404790887,1770565832364,-150.79,0.000264,2]
[404790888,1770565832374,-187.22,0.000264,2]
[404790889,1770565832386,-999.99,0.000264,2]
[404790890,1770565832395,-1000.0,0.00026405,2]
[404790891,1770565832406,-9999.99,0.00026405,2]
[404790892,1770565832416,-1093.0,0.00026407,2]
[404790893,1770565832425,-294.65548562,0.00026424,2]
[404790894,1770565832435,-151.0,0.00026432,7]
[404790895,1770565832445,-500.0,0.00026434,2]
[404790896,1770565832456,-500.0,0.00026434,2]
[404790897,1770565832471,-196.51525641,0.00026434,2]
[404790898,1770565832481,-233.54639444,0.00026434,2]
[404790899,1770565832491,-257.97888422,0.00026434,2]
[404790901,1770565832500,-593.14717951,0.00026434,2]
[404790902,1770565832510,-1039.81389894,0.00026434,2]
[404790903,1770565832520,-500.0,0.00026434,2]
[404790904,1770565832529,-286.91744493,0.00026434,2]
[404790905,1770565832538,-500.0,0.00026434,2]
[404790906,1770565832548,-1039.81389894,0.00026434,2]
[404790908,1770565832556,-500.0,0.00026434,2]
[404790910,1770565832567,-1039.81389894,0.00026434,2]
[404790912,1770565832575,-500.0,0.00026434,2]
[404790914,1770565832584,-1039.81389894,0.00026434,2]
[404790916,1770565832594,-500.0,0.00026434,2]
[404790918,1770565832603,-500.0,0.00026434,2]
[404790919,1770565832612,-1039.81389894,0.00026434,2]
[404790920,1770565832621,-500.0,0.00026434,2]
[404790921,1770565832631,-1039.81389894,0.00026434,2]
[404790922,1770565832641,-500.0,0.00026434,2]
[404790923,1770565832650,-1039.81389894,0.00026434,2]
[404790924,1770565832660,-500.0,0.00026434,2]
[404790925,1770565832670,-1039.81389894,0.00026434,2]
[404790926,1770565832680,-500.0,0.00026434,2]
[404790927,1770565832691,-500.0,0.00026434,2]
[404790928,1770565832700,-1039.81389894,0.00026434,2]
[404790929,1770565832710,-500.0,0.00026434,2]
[404790930,1770565832719,-1039.81389894,0.00026434,2]
[404790931,1770565832732,-500.0,0.00026434,2]
[404790932,1770565832742,-1039.81389894,0.00026434,2]
[404790933,1770565832752,-500.0,0.00026434,2]
[404790934,1770565832763,-1039.81389894,0.00026434,2]
[404790935,1770565832776,-627.83658447,0.00026434,2]
[404790936,1770565832786,-1039.81389894,0.00026434,2]
[404790937,1770565832796,-500.0,0.00026434,2]
[404790938,1770565832806,-500.0,0.00026434,2]
[404790939,1770565832816,-1039.81389894,0.00026434,2]
[404790940,1770565832826,-500.0,0.00026434,2]
[404790941,1770565832838,-1039.81389894,0.00026434,2]
[404790942,1770565832848,-500.0,0.00026434,2]
[404790943,1770565832858,-1039.81389894,0.00026434,2]
[404790944,1770565832868,-500.0,0.00026434,2]
[404790945,1770565832878,-1039.81389894,0.00026434,2]
[404790946,1770565832888,-1039.81389894,0.00026434,2]
[404790947,1770565832898,-1039.81389894,0.00026434,2]
[404790948,1770565832908,-1039.81389894,0.00026434,2]
[404790949,1770565832918,-500.0,0.00026434,2]
[404790950,1770565832928,-1039.81389894,0.00026434,2]
[404790951,1770565832937,-1039.81389894,0.00026434,2]
[404790952,1770565832947,-1039.81389894,0.00026434,2]
[404790953,1770565832956,-500.0,0.00026434,2]
[404790954,1770565832966,-1039.81389894,0.00026434,2]
[404790955,1770565832979,-1039.81389894,0.00026434,2]
[404790956,1770565832989,-1039.81389894,0.00026434,2]
[404790957,1770565832998,-1039.81389894,0.00026434,2]
[404790958,1770565833008,-1039.81389894,0.00026434,2]
[404790959,1770565833018,-1039.81389894,0.00026434,2]
[404790960,1770565833028,-1039.81389894,0.00026434,2]
[404790961,1770565833038,-1039.81389894,0.00026434,2]
[404790962,1770565833048,-1039.81389894,0.00026434,2]
[404790963,1770565833058,-1039.81389894,0.00026434,2]
[404790964,1770565833068,-1039.81389894,0.00026434,2]
[404790965,1770565833080,-1039.81389894,0.00026434,2]
[404790966,1770565833090,-1039.81389894,0.00026434,2]
[404790967,1770565833100,-1039.81389894,0.00026434,2]
[404790968,1770565833109,-1039.81389894,0.00026434,2]
[404790969,1770565833119,-1039.81389894,0.00026434,2]
[404790970,1770565833128,-1039.81389894,0.00026434,2]
[404790971,1770565833138,-1039.81389894,0.00026434,2]
[404790972,1770565833148,-1039.81389894,0.00026434,2]
[404790973,1770565833160,-1039.81389894,0.00026434,2]
[404790974,1770565833170,-1039.81389894,0.00026434,2]
[404790975,1770565833182,-1039.81389894,0.00026434,2]
[404790976,1770565833192,-737.05042224,0.00026434,2]
[404790977,1770565833214,-302.7634767,0.00026434,2]
[404790978,1770565833223,-648.01008121,0.00026434,2]
[404790979,1770565833235,-391.80381773,0.00026434,2]
[404790980,1770565833244,-565.42071477,0.00026434,2]
[404790982,1770565838365,-332.99999985,0.00026434,2]
[404790983,1770565838380,-141.39318432,0.00026434,2]
[404790984,1770565838394,-1039.81389894,0.00026434,2]
[404790985,1770565838405,-1039.81389894,0.00026434,2]
[404790986,1770565838415,-1039.81389894,0.00026434,2]
[404790987,1770565838425,-1039.81389894,0.00026434,2]
[404790988,1770565838436,-1039.81389894,0.00026434,2]
[404790989,1770565838447,-1589.76337572,0.00026434,2]
[404790990,1770565838457,-1589.76337572,0.00026434,2]
[404790991,1770565838472,-1589.76337572,0.00026434,2]
[404790992,1770565838485,-1589.76337572,0.00026434,2]
[404790993,1770565838496,-1589.76337572,0.00026434,2]
[404790994,1770565838507,-1589.76337572,0.00026434,2]
[404790995,1770565838519,-1589.76337572,0.00026434,2]
[404790996,1770565838530,-1589.76337572,0.00026434,2]
[404790997,1770565838541,-1589.76337572,0.00026434,2]
[404790998,1770565838553,-1589.76337572,0.00026434,2]
[404790999,1770565838564,-1589.76337572,0.00026434,2]
[404791000,1770565838574,-1589.76337572,0.00026434,2]
[404791001,1770565838585,-1589.76337572,0.00026434,2]